[Event "Titled Tuesday Blitz November 08 Early 2022"]
[White "Crevatin, Leo"]
[Black "Piesik, Piotr"]
[WhiteFideId "1726307"]
[BlackFideId "1136194"]
[WhiteElo "2208"]
[BlackElo "2316"]
[Result "1/2-1/2"]
[Round "11"]
[TimeControl "180+1"]
[Date "2022.11.09"]
[WhiteClock "0:00:06"]
[BlackClock "0:00:49"]

1. e4 {[%clk 0:03:00]}  g6 {[%clk 0:02:58]} 2. d4 {[%clk 0:02:59]}  Bg7 {[%clk 0:02:58]} 3. Nf3 {[%clk 0:02:58]}  c6 {[%clk 0:02:55]} 4. c3 {[%clk 0:02:51]}  d6 {[%clk 0:02:55]} 5. h3 {[%clk 0:02:48]}  Nf6 {[%clk 0:02:55]} 6. Bd3 {[%clk 0:02:46]}  O-O {[%clk 0:02:56]} 7. O-O {[%clk 0:02:46]}  Nbd7 {[%clk 0:02:57]} 8. Nbd2 {[%clk 0:02:40]}  e5 {[%clk 0:02:57]} 9. dxe5 {[%clk 0:02:39]}  dxe5 {[%clk 0:02:58]} 10. Bc2 {[%clk 0:02:29]}  Qc7 {[%clk 0:02:55]} 11. Nc4 {[%clk 0:02:27]}  Rd8 {[%clk 0:02:51]} 12. Qd6 {[%clk 0:02:24]}  Qxd6 {[%clk 0:02:49]} 13. Nxd6 {[%clk 0:02:25]}  Nc5 {[%clk 0:02:44]} 14. Nxc8 {[%clk 0:02:23]}  Raxc8 {[%clk 0:02:45]} 15. Re1 {[%clk 0:02:22]}  Nh5 {[%clk 0:02:36]} 16. Be3 {[%clk 0:02:18]}  Nd3 {[%clk 0:02:36]} 17. Bxd3 {[%clk 0:02:15]}  Rxd3 {[%clk 0:02:37]} 18. Bxa7 {[%clk 0:02:15]}  Nf4 {[%clk 0:02:34]} 19. Be3 {[%clk 0:02:13]}  Rcd8 {[%clk 0:02:29]} 20. Bxf4 {[%clk 0:02:10]}  exf4 {[%clk 0:02:29]} 21. Rac1 {[%clk 0:02:07]}  b5 {[%clk 0:02:26]} 22. a3 {[%clk 0:02:05]}  c5 {[%clk 0:02:25]} 23. Rc2 {[%clk 0:02:04]}  c4 {[%clk 0:02:23]} 24. Kf1 {[%clk 0:02:02]}  Kf8 {[%clk 0:02:09]} 25. Rcc1 {[%clk 0:02:01]}  Re8 {[%clk 0:02:06]} 26. Ra1 {[%clk 0:01:56]}  Ke7 {[%clk 0:01:51]} 27. Red1 {[%clk 0:01:55]}  Kd6 {[%clk 0:01:43]} 28. Rxd3+ {[%clk 0:01:53]}  cxd3 {[%clk 0:01:44]} 29. Rd1 {[%clk 0:01:53]}  Rxe4 {[%clk 0:01:44]} 30. Rxd3+ {[%clk 0:01:52]}  Kc6 {[%clk 0:01:43]} 31. Nd2 {[%clk 0:01:45]}  Re8 {[%clk 0:01:41]} 32. Nb3 {[%clk 0:01:44]}  h5 {[%clk 0:01:31]} 33. Rd2 {[%clk 0:01:44]}  Bf6 {[%clk 0:01:26]} 34. Re2 {[%clk 0:01:43]}  Rd8 {[%clk 0:01:26]} 35. Ke1 {[%clk 0:01:43]}  g5 {[%clk 0:01:25]} 36. Rd2 {[%clk 0:01:34]}  Re8+ {[%clk 0:01:25]} 37. Kd1 {[%clk 0:01:25]}  g4 {[%clk 0:01:25]} 38. hxg4 {[%clk 0:01:26]}  hxg4 {[%clk 0:01:26]} 39. f3 {[%clk 0:01:25]}  g3 {[%clk 0:01:22]} 40. Re2 {[%clk 0:01:22]}  Rh8 {[%clk 0:01:17]} 41. Nd2 {[%clk 0:01:18]}  Bd8 {[%clk 0:01:11]} 42. Nb3 {[%clk 0:00:36]}  Bb6 {[%clk 0:01:09]} 43. Nd4+ {[%clk 0:00:36]}  Bxd4 {[%clk 0:01:05]} 44. cxd4 {[%clk 0:00:37]}  Kd5 {[%clk 0:01:06]} 45. Rd2 {[%clk 0:00:38]}  Rh1+ {[%clk 0:01:03]} 46. Kc2 {[%clk 0:00:38]}  Rf1 {[%clk 0:01:02]} 47. Kc3 {[%clk 0:00:35]}  Rc1+ {[%clk 0:00:59]} 48. Kb4 {[%clk 0:00:32]}  Rc4+ {[%clk 0:00:59]} 49. Kxb5 {[%clk 0:00:29]}  Rxd4 {[%clk 0:00:59]} 50. Rxd4+ {[%clk 0:00:28]}  Kxd4 {[%clk 0:01:00]} 51. a4 {[%clk 0:00:28]}  Ke3 {[%clk 0:01:01]} 52. a5 {[%clk 0:00:29]}  Kf2 {[%clk 0:01:02]} 53. a6 {[%clk 0:00:29]}  Kxg2 {[%clk 0:01:02]} 54. a7 {[%clk 0:00:30]}  Kf1 {[%clk 0:00:56]} 55. a8=Q {[%clk 0:00:29]}  g2 {[%clk 0:00:56]} 56. Qa1+ {[%clk 0:00:23]}  Kf2 {[%clk 0:00:56]} 57. Qa7+ {[%clk 0:00:13]}  Kf1 {[%clk 0:00:56]} 58. Qa1+ {[%clk 0:00:11]}  Kf2 {[%clk 0:00:56]} 59. Qa7+ {[%clk 0:00:11]}  Kf1 {[%clk 0:00:53]} 60. Kc6 {[%clk 0:00:06]}  g1=Q {[%clk 0:00:52]} 61. Qxg1+ {[%clk 0:00:06]}  Kxg1 {[%clk 0:00:53]} 62. b4 {[%clk 0:00:06]}  Kf2 {[%clk 0:00:53]} 63. b5 {[%clk 0:00:07]}  Kxf3 {[%clk 0:00:54]} 64. b6 {[%clk 0:00:08]}  Kg2 {[%clk 0:00:50]} 65. b7 {[%clk 0:00:08]}  f3 {[%clk 0:00:51]} 66. b8=Q {[%clk 0:00:09]}  f2 {[%clk 0:00:51]} 67. Qg8+ {[%clk 0:00:07]}  Kh2 {[%clk 0:00:49]} 68. Qxf7 {[%clk 0:00:06]}  Kg2 {[%clk 0:00:48]} 69. Qg6+ {[%clk 0:00:06]}  Kh2 {[%clk 0:00:48]} 70. Qf5 {[%clk 0:00:07]}  Kg2 {[%clk 0:00:48]} 71. Qg4+ {[%clk 0:00:07]}  Kh2 {[%clk 0:00:48]} 72. Qf3 {[%clk 0:00:07]}  Kg1 {[%clk 0:00:49]} 73. Qg3+ {[%clk 0:00:08]}  Kh1 {[%clk 0:00:49]} 74. Qxf2 {[%clk 0:00:06]} 1/2-1/2


[Site "https://www.chess.com"]

[Event "Titled Tuesday Blitz November 08 Early 2022"]
[White "Cruz Mendez, Jean Marco"]
[Black "Manukian, Artak"]
[WhiteFideId "3526402"]
[BlackFideId "13301373"]
[WhiteElo "2064"]
[BlackElo "2130"]
[Result "0-1"]
[Round "11"]
[TimeControl "180+1"]
[Date "2022.11.09"]
[WhiteClock "0:01:13"]
[BlackClock "0:01:15"]

1. e4 {[%clk 0:02:56]}  c6 {[%clk 0:02:59]} 2. d3 {[%clk 0:02:55]}  d5 {[%clk 0:03:00]} 3. Nd2 {[%clk 0:02:56]}  Nf6 {[%clk 0:02:59]} 4. Ngf3 {[%clk 0:02:55]}  Qc7 {[%clk 0:02:58]} 5. g3 {[%clk 0:02:53]}  e5 {[%clk 0:02:57]} 6. Bg2 {[%clk 0:02:54]}  Bg4 {[%clk 0:02:57]} 7. O-O {[%clk 0:02:53]}  Nbd7 {[%clk 0:02:56]} 8. h3 {[%clk 0:02:53]}  Bxf3 {[%clk 0:02:55]} 9. Qxf3 {[%clk 0:02:53]}  d4 {[%clk 0:02:55]} 10. Qe2 {[%clk 0:02:51]}  Bd6 {[%clk 0:02:54]} 11. a4 {[%clk 0:02:47]}  O-O {[%clk 0:02:53]} 12. Nc4 {[%clk 0:02:47]}  b5 {[%clk 0:02:50]} 13. Nxd6 {[%clk 0:02:41]}  Qxd6 {[%clk 0:02:50]} 14. f4 {[%clk 0:02:38]}  bxa4 {[%clk 0:02:46]} 15. Rxa4 {[%clk 0:02:37]}  Nb6 {[%clk 0:02:41]} 16. Ra1 {[%clk 0:02:36]}  Nfd7 {[%clk 0:02:41]} 17. b3 {[%clk 0:02:34]}  a5 {[%clk 0:02:37]} 18. g4 {[%clk 0:02:23]}  f6 {[%clk 0:02:32]} 19. g5 {[%clk 0:02:20]}  fxg5 {[%clk 0:02:30]} 20. fxg5 {[%clk 0:02:17]}  Rxf1+ {[%clk 0:02:29]} 21. Qxf1 {[%clk 0:02:18]}  a4 {[%clk 0:02:15]} 22. bxa4 {[%clk 0:02:17]}  Rxa4 {[%clk 0:02:15]} 23. Rxa4 {[%clk 0:02:16]}  Nxa4 {[%clk 0:02:15]} 24. h4 {[%clk 0:02:14]}  Nc3 {[%clk 0:02:13]} 25. Bh3 {[%clk 0:02:13]}  Nf8 {[%clk 0:02:13]} 26. h5 {[%clk 0:02:07]}  Qe7 {[%clk 0:02:05]} 27. Kg2 {[%clk 0:02:02]}  Qf7 {[%clk 0:02:02]} 28. Qxf7+ {[%clk 0:01:57]}  Kxf7 {[%clk 0:02:03]} 29. Ba3 {[%clk 0:01:57]}  Ne6 {[%clk 0:02:02]} 30. Bxe6+ {[%clk 0:01:52]}  Kxe6 {[%clk 0:02:02]} 31. Kf3 {[%clk 0:01:52]}  g6 {[%clk 0:01:59]} 32. hxg6 {[%clk 0:01:49]}  hxg6 {[%clk 0:02:00]} 33. Bf8 {[%clk 0:01:41]}  Nb5 {[%clk 0:01:56]} 34. Bb4 {[%clk 0:01:37]}  Nc7 {[%clk 0:01:54]} 35. Bf8 {[%clk 0:01:31]}  Na6 {[%clk 0:01:49]} 36. Ba3 {[%clk 0:01:31]}  Nc7 {[%clk 0:01:45]} 37. Ke2 {[%clk 0:01:30]}  Kd7 {[%clk 0:01:41]} 38. Kd2 {[%clk 0:01:26]}  Ne6 {[%clk 0:01:41]} 39. Ke2 {[%clk 0:01:18]}  Nxg5 {[%clk 0:01:41]} 40. Bc1 {[%clk 0:01:17]}  Ne6 {[%clk 0:01:41]} 41. Kf3 {[%clk 0:01:18]}  c5 {[%clk 0:01:34]} 42. Kg4 {[%clk 0:01:18]}  Kc6 {[%clk 0:01:33]} 43. Bg5 {[%clk 0:01:13]}  c4 {[%clk 0:01:23]} 44. Bf6 {[%clk 0:01:12]}  cxd3 {[%clk 0:01:21]} 45. cxd3 {[%clk 0:01:13]}  Kd6 {[%clk 0:01:20]} 46. Kf3 {[%clk 0:01:13]}  Nf4 {[%clk 0:01:15]} 0-1


[Site "https://www.chess.com"]

[Event "Titled Tuesday Blitz November 08 Early 2022"]
[White "D`Arruda, Ricardo D."]
[Black "Prydun, Andriy"]
[WhiteFideId "100692"]
[BlackFideId "14145898"]
[WhiteElo "2515"]
[BlackElo "2163"]
[Result "1-0"]
[Round "11"]
[TimeControl "180+1"]
[Date "2022.11.09"]
[WhiteClock "0:00:20"]
[BlackClock "0:00:23"]

1. d4 {[%clk 0:02:56]}  Nf6 {[%clk 0:02:58]} 2. Nf3 {[%clk 0:02:55]}  e6 {[%clk 0:02:57]} 3. g3 {[%clk 0:02:54]}  b6 {[%clk 0:02:53]} 4. Bg2 {[%clk 0:02:54]}  Bb7 {[%clk 0:02:53]} 5. O-O {[%clk 0:02:54]}  Be7 {[%clk 0:02:51]} 6. c4 {[%clk 0:02:53]}  O-O {[%clk 0:02:50]} 7. Nc3 {[%clk 0:02:54]}  Ne4 {[%clk 0:02:49]} 8. Bd2 {[%clk 0:02:53]}  Nxc3 {[%clk 0:02:48]} 9. Bxc3 {[%clk 0:02:53]}  d6 {[%clk 0:02:46]} 10. Qc2 {[%clk 0:02:49]}  Nd7 {[%clk 0:02:47]} 11. e4 {[%clk 0:02:48]}  a6 {[%clk 0:02:40]} 12. Rfe1 {[%clk 0:02:47]}  c5 {[%clk 0:02:31]} 13. Rad1 {[%clk 0:02:35]}  cxd4 {[%clk 0:02:28]} 14. Nxd4 {[%clk 0:02:35]}  Rc8 {[%clk 0:02:27]} 15. b3 {[%clk 0:02:30]}  Qc7 {[%clk 0:02:21]} 16. Rc1 {[%clk 0:02:25]}  Qb8 {[%clk 0:02:16]} 17. Qb2 {[%clk 0:02:24]}  Bf6 {[%clk 0:02:14]} 18. Ne2 {[%clk 0:02:21]}  Qa8 {[%clk 0:02:12]} 19. f3 {[%clk 0:02:14]}  Rfd8 {[%clk 0:02:11]} 20. Red1 {[%clk 0:02:00]}  d5 {[%clk 0:02:09]} 21. cxd5 {[%clk 0:01:45]}  exd5 {[%clk 0:02:06]} 22. e5 {[%clk 0:01:43]}  Be7 {[%clk 0:01:56]} 23. e6 {[%clk 0:01:42]}  fxe6 {[%clk 0:01:40]} 24. Bxg7 {[%clk 0:01:31]}  Rxc1 {[%clk 0:01:36]} 25. Rxc1 {[%clk 0:01:29]}  Bc5+ {[%clk 0:01:26]} 26. Bd4 {[%clk 0:01:24]}  e5 {[%clk 0:00:57]} 27. Bxc5 {[%clk 0:01:19]}  bxc5 {[%clk 0:00:58]} 28. Bh3 {[%clk 0:01:13]}  d4 {[%clk 0:00:56]} 29. Bxd7 {[%clk 0:01:00]}  Rxd7 {[%clk 0:00:56]} 30. Rxc5 {[%clk 0:01:00]}  Bxf3 {[%clk 0:00:57]} 31. Rxe5 {[%clk 0:00:59]}  Qa7 {[%clk 0:00:52]} 32. Nf4 {[%clk 0:00:35]}  h6 {[%clk 0:00:37]} 33. Qf2 {[%clk 0:00:33]}  Bg4 {[%clk 0:00:35]} 34. Nd5 {[%clk 0:00:29]}  Rf7 {[%clk 0:00:33]} 35. Nf6+ {[%clk 0:00:26]}  Kg7 {[%clk 0:00:31]} 36. Ne8+ {[%clk 0:00:25]}  Kf8 {[%clk 0:00:30]} 37. Nf6 {[%clk 0:00:24]}  Kg7 {[%clk 0:00:26]} 38. Ne8+ {[%clk 0:00:20]}  Kf8 {[%clk 0:00:25]} 39. Nf6 {[%clk 0:00:21]}  Bh3 {[%clk 0:00:24]} 40. Re8+ {[%clk 0:00:20]}  Kg7 {[%clk 0:00:23]} 41. Rg8# {[%clk 0:00:20]} 1-0


[Site "https://www.chess.com"]

[Event "Titled Tuesday Blitz November 08 Early 2022"]
[White "Deac, Bogdan-Daniel"]
[Black "Baskakov, Egor"]
[WhiteFideId "1226380"]
[BlackFideId "24197866"]
[WhiteElo "2648"]
[BlackElo "2211"]
[Result "1-0"]
[Round "11"]
[TimeControl "180+1"]
[Date "2022.11.08"]
[WhiteClock "0:00:02"]
[BlackClock "0:00:31"]

1. Nf3 {[%clk 0:03:00]}  Nf6 {[%clk 0:02:58]} 2. c4 {[%clk 0:03:00]}  e6 {[%clk 0:02:58]} 3. g3 {[%clk 0:03:00]}  d5 {[%clk 0:02:59]} 4. Bg2 {[%clk 0:03:01]}  Be7 {[%clk 0:02:59]} 5. b3 {[%clk 0:03:00]}  O-O {[%clk 0:03:00]} 6. Bb2 {[%clk 0:03:01]}  b6 {[%clk 0:03:00]} 7. cxd5 {[%clk 0:03:01]}  exd5 {[%clk 0:03:00]} 8. O-O {[%clk 0:03:01]}  Bb7 {[%clk 0:03:00]} 9. d4 {[%clk 0:03:02]}  Ne4 {[%clk 0:03:00]} 10. Nc3 {[%clk 0:03:01]}  f6 {[%clk 0:02:59]} 11. Rc1 {[%clk 0:02:57]}  a6 {[%clk 0:02:58]} 12. Qc2 {[%clk 0:02:46]}  f5 {[%clk 0:02:57]} 13. Ne5 {[%clk 0:02:42]}  Bd6 {[%clk 0:02:57]} 14. e3 {[%clk 0:02:39]}  Nd7 {[%clk 0:02:54]} 15. Ne2 {[%clk 0:02:39]}  Qe7 {[%clk 0:02:53]} 16. Nc6 {[%clk 0:02:34]}  Qf7 {[%clk 0:02:52]} 17. f3 {[%clk 0:02:34]}  Ng5 {[%clk 0:02:47]} 18. Ne5 {[%clk 0:02:26]}  Qe7 {[%clk 0:02:47]} 19. h4 {[%clk 0:02:16]}  Ne6 {[%clk 0:02:47]} 20. f4 {[%clk 0:02:10]}  g6 {[%clk 0:02:42]} 21. Nc6 {[%clk 0:02:08]}  Qf7 {[%clk 0:02:37]} 22. Bxd5 {[%clk 0:02:05]}  Nf6 {[%clk 0:02:38]} 23. Bf3 {[%clk 0:02:04]}  Ne4 {[%clk 0:02:34]} 24. Bxe4 {[%clk 0:01:49]}  fxe4 {[%clk 0:02:35]} 25. d5 {[%clk 0:01:50]}  Ng7 {[%clk 0:02:32]} 26. Bxg7 {[%clk 0:01:49]}  Kxg7 {[%clk 0:02:30]} 27. Nc3 {[%clk 0:01:28]}  Rae8 {[%clk 0:02:27]} 28. Rcd1 {[%clk 0:01:25]}  Qf5 {[%clk 0:02:23]} 29. Nd4 {[%clk 0:01:21]}  Qg4 {[%clk 0:02:15]} 30. Qg2 {[%clk 0:01:14]}  Bc5 {[%clk 0:02:09]} 31. Kh2 {[%clk 0:01:03]}  Bc8 {[%clk 0:02:01]} 32. Nce2 {[%clk 0:00:32]}  h6 {[%clk 0:01:57]} 33. Rc1 {[%clk 0:00:25]}  g5 {[%clk 0:01:50]} 34. Rc4 {[%clk 0:00:20]}  a5 {[%clk 0:01:49]} 35. Rfc1 {[%clk 0:00:14]}  Rf7 {[%clk 0:01:35]} 36. Rxc5 {[%clk 0:00:13]}  bxc5 {[%clk 0:01:36]} 37. Rxc5 {[%clk 0:00:14]}  Kh7 {[%clk 0:01:33]} 38. Ne6 {[%clk 0:00:09]}  gxh4 {[%clk 0:01:23]} 39. Qxe4+ {[%clk 0:00:09]}  Kg8 {[%clk 0:01:18]} 40. Qg2 {[%clk 0:00:09]}  Kh8 {[%clk 0:01:10]} 41. e4 {[%clk 0:00:05]}  hxg3+ {[%clk 0:01:01]} 42. Nxg3 {[%clk 0:00:05]}  Bxe6 {[%clk 0:01:01]} 43. dxe6 {[%clk 0:00:04]}  Rxf4 {[%clk 0:00:56]} 44. Qb2+ {[%clk 0:00:03]}  Kg8 {[%clk 0:00:56]} 45. Nf5 {[%clk 0:00:03]}  Rxe6 {[%clk 0:00:41]} 46. Rc3 {[%clk 0:00:03]}  Rf3 {[%clk 0:00:30]} 47. Rxf3 {[%clk 0:00:02]}  Qxf3 {[%clk 0:00:31]} 48. Qg7# {[%clk 0:00:02]} 1-0


[Site "https://www.chess.com"]

[Event "Titled Tuesday Blitz November 08 Early 2022"]
[White "Dehtiarov, Roman"]
[Black "Rodriguez Fontecha, Marcos"]
[WhiteFideId "14186640"]
[BlackFideId "2256576"]
[WhiteElo "2200"]
[BlackElo "2263"]
[Result "0-1"]
[Round "11"]
[TimeControl "180+1"]
[Date "2022.11.09"]
[WhiteClock "0:00:01"]
[BlackClock "0:00:06"]

1. e4 {[%clk 0:02:31]}  e6 {[%clk 0:02:52]} 2. d3 {[%clk 0:02:28]}  d5 {[%clk 0:02:52]} 3. Nd2 {[%clk 0:02:22]}  Nf6 {[%clk 0:02:51]} 4. g3 {[%clk 0:02:20]}  dxe4 {[%clk 0:02:47]} 5. dxe4 {[%clk 0:02:21]}  e5 {[%clk 0:02:46]} 6. Bg2 {[%clk 0:02:21]}  Bc5 {[%clk 0:02:43]} 7. Ne2 {[%clk 0:02:19]}  Bg4 {[%clk 0:02:28]} 8. O-O {[%clk 0:02:18]}  O-O {[%clk 0:02:28]} 9. h3 {[%clk 0:02:11]}  Bh5 {[%clk 0:02:26]} 10. g4 {[%clk 0:02:11]}  Bg6 {[%clk 0:02:25]} 11. Ng3 {[%clk 0:02:08]}  Re8 {[%clk 0:02:22]} 12. Nb3 {[%clk 0:02:07]}  Bb6 {[%clk 0:02:21]} 13. Qe2 {[%clk 0:02:01]}  Qe7 {[%clk 0:02:20]} 14. Be3 {[%clk 0:01:53]}  Nc6 {[%clk 0:02:18]} 15. c3 {[%clk 0:01:53]}  Red8 {[%clk 0:02:16]} 16. Rfd1 {[%clk 0:01:52]}  Rxd1+ {[%clk 0:02:14]} 17. Rxd1 {[%clk 0:01:53]}  Rd8 {[%clk 0:02:14]} 18. Nf5 {[%clk 0:01:52]}  Rxd1+ {[%clk 0:02:12]} 19. Qxd1 {[%clk 0:01:48]}  Qd8 {[%clk 0:02:13]} 20. Qe2 {[%clk 0:01:43]}  Ne8 {[%clk 0:02:04]} 21. Bxb6 {[%clk 0:01:42]}  axb6 {[%clk 0:02:03]} 22. Ne3 {[%clk 0:01:17]}  f6 {[%clk 0:02:02]} 23. Nd5 {[%clk 0:01:11]}  Bf7 {[%clk 0:02:01]} 24. h4 {[%clk 0:01:03]}  Qd6 {[%clk 0:02:01]} 25. h5 {[%clk 0:01:01]}  Nd8 {[%clk 0:02:00]} 26. Ne3 {[%clk 0:00:58]}  Ne6 {[%clk 0:01:57]} 27. Nf5 {[%clk 0:00:56]}  Qd7 {[%clk 0:01:53]} 28. Qd2 {[%clk 0:00:50]}  Qxd2 {[%clk 0:01:50]} 29. Nxd2 {[%clk 0:00:51]}  Kf8 {[%clk 0:01:50]} 30. Bf1 {[%clk 0:00:50]}  Ng5 {[%clk 0:01:44]} 31. f3 {[%clk 0:00:48]}  Bxa2 {[%clk 0:01:41]} 32. b3 {[%clk 0:00:44]}  g6 {[%clk 0:01:26]} 33. hxg6 {[%clk 0:00:44]}  hxg6 {[%clk 0:01:26]} 34. Ne3 {[%clk 0:00:44]}  c6 {[%clk 0:01:23]} 35. Nc2 {[%clk 0:00:40]}  c5 {[%clk 0:01:12]} 36. Kf2 {[%clk 0:00:38]}  Nc7 {[%clk 0:01:03]} 37. Na3 {[%clk 0:00:26]}  Ke7 {[%clk 0:00:59]} 38. Nac4 {[%clk 0:00:22]}  b5 {[%clk 0:00:58]} 39. Nb2 {[%clk 0:00:22]}  Nge6 {[%clk 0:00:53]} 40. Ke1 {[%clk 0:00:18]}  b4 {[%clk 0:00:37]} 41. cxb4 {[%clk 0:00:15]}  cxb4 {[%clk 0:00:38]} 42. Nd3 {[%clk 0:00:15]}  Nd4 {[%clk 0:00:35]} 43. Nc1 {[%clk 0:00:15]}  Bb1 {[%clk 0:00:20]} 44. Nxb1 {[%clk 0:00:09]}  Nxf3+ {[%clk 0:00:20]} 45. Kf2 {[%clk 0:00:09]}  Nd4 {[%clk 0:00:21]} 46. Nd2 {[%clk 0:00:07]}  Nce6 {[%clk 0:00:20]} 47. Ne2 {[%clk 0:00:06]}  Nc2 {[%clk 0:00:18]} 48. Nc1 {[%clk 0:00:06]}  Nc5 {[%clk 0:00:17]} 49. Nd3 {[%clk 0:00:05]}  Na6 {[%clk 0:00:13]} 50. Nb2 {[%clk 0:00:04]}  Nd4 {[%clk 0:00:12]} 51. Nd3 {[%clk 0:00:04]}  Kd6 {[%clk 0:00:11]} 52. Ke1 {[%clk 0:00:04]}  f5 {[%clk 0:00:09]} 53. gxf5 {[%clk 0:00:04]}  gxf5 {[%clk 0:00:10]} 54. exf5 {[%clk 0:00:05]}  Nxf5 {[%clk 0:00:11]} 55. Bg2 {[%clk 0:00:04]}  Kc7 {[%clk 0:00:09]} 56. Be4 {[%clk 0:00:05]}  Nd4 {[%clk 0:00:08]} 57. Kd1 {[%clk 0:00:05]}  b6 {[%clk 0:00:05]} 58. Nxe5 {[%clk 0:00:05]}  Kd6 {[%clk 0:00:06]} 59. Nd3 {[%clk 0:00:05]}  Nb5 {[%clk 0:00:05]} 60. Kc2 {[%clk 0:00:03]}  Nc3 {[%clk 0:00:05]} 61. Bg2 {[%clk 0:00:03]}  Na2 {[%clk 0:00:05]} 62. Nc4+ {[%clk 0:00:04]}  Kc7 {[%clk 0:00:05]} 63. Kb2 {[%clk 0:00:05]}  Nc3 {[%clk 0:00:04]} 64. Kc2 {[%clk 0:00:06]}  Ne2 {[%clk 0:00:04]} 65. Kd2 {[%clk 0:00:06]}  Nd4 {[%clk 0:00:05]} 66. Ke3 {[%clk 0:00:03]}  Nxb3 {[%clk 0:00:04]} 67. Nf4 {[%clk 0:00:03]}  Nbc5 {[%clk 0:00:04]} 68. Nd5+ {[%clk 0:00:03]}  Kc6 {[%clk 0:00:03]} 69. Ne5+ {[%clk 0:00:03]}  Kb5 {[%clk 0:00:03]} 70. Bf1+ {[%clk 0:00:03]}  Ka5 {[%clk 0:00:02]} 71. Nc6+ {[%clk 0:00:03]}  Ka4 {[%clk 0:00:03]} 72. Nxb6+ {[%clk 0:00:04]}  Ka3 {[%clk 0:00:03]} 73. Na5 {[%clk 0:00:04]}  Na4 {[%clk 0:00:02]} 74. Nd5 {[%clk 0:00:02]}  N6c5 {[%clk 0:00:03]} 75. Bc4 {[%clk 0:00:02]}  b3 {[%clk 0:00:03]} 76. Nc6 {[%clk 0:00:02]}  b2 {[%clk 0:00:03]} 77. Bd3 {[%clk 0:00:03]}  Nxd3 {[%clk 0:00:03]} 78. Nd4 {[%clk 0:00:03]}  b1=Q {[%clk 0:00:03]} 79. Nc3 {[%clk 0:00:04]}  Qg1+ {[%clk 0:00:03]} 80. Kd2 {[%clk 0:00:04]}  Qg2+ {[%clk 0:00:03]} 81. Kxd3 {[%clk 0:00:04]}  Qg6+ {[%clk 0:00:04]} 82. Kd2 {[%clk 0:00:05]}  Nxc3 {[%clk 0:00:05]} 83. Kxc3 {[%clk 0:00:05]}  Ka4 {[%clk 0:00:05]} 84. Kc4 {[%clk 0:00:05]}  Ka5 {[%clk 0:00:06]} 85. Kc5 {[%clk 0:00:05]}  Ka6 {[%clk 0:00:06]} 86. Kc4 {[%clk 0:00:06]}  Kb6 {[%clk 0:00:06]} 87. Kd5 {[%clk 0:00:06]}  Qg5+ {[%clk 0:00:07]} 88. Kc4 {[%clk 0:00:06]}  Qg2 {[%clk 0:00:07]} 89. Kd3 {[%clk 0:00:06]}  Qh3+ {[%clk 0:00:07]} 90. Kc4 {[%clk 0:00:06]}  Qf1+ {[%clk 0:00:07]} 91. Kd5 {[%clk 0:00:06]}  Qh1+ {[%clk 0:00:06]} 92. Kc4 {[%clk 0:00:06]}  Kc7 {[%clk 0:00:06]} 93. Kc5 {[%clk 0:00:06]}  Qg1 {[%clk 0:00:06]} 94. Kd5 {[%clk 0:00:06]}  Qg2+ {[%clk 0:00:06]} 95. Kc5 {[%clk 0:00:06]}  Qg5+ {[%clk 0:00:03]} 96. Kc4 {[%clk 0:00:06]}  Qc1+ {[%clk 0:00:04]} 97. Kd5 {[%clk 0:00:06]}  Qb1 {[%clk 0:00:03]} 98. Ne6+ {[%clk 0:00:05]}  Kd7 {[%clk 0:00:03]} 99. Nd4 {[%clk 0:00:06]}  Ke7 {[%clk 0:00:04]} 100. Ke5 {[%clk 0:00:06]}  Kf7 {[%clk 0:00:04]} 101. Kd5 {[%clk 0:00:06]}  Kf6 {[%clk 0:00:03]} 102. Kc5 {[%clk 0:00:05]}  Qa1 {[%clk 0:00:03]} 103. Kd5 {[%clk 0:00:05]}  Qa8+ {[%clk 0:00:03]} 104. Kc5 {[%clk 0:00:04]}  Ke5 {[%clk 0:00:04]} 105. Nc6+ {[%clk 0:00:05]}  Ke4 {[%clk 0:00:04]} 106. Kd6 {[%clk 0:00:05]}  Qf8+ {[%clk 0:00:04]} 107. Kd7 {[%clk 0:00:04]}  Kd5 {[%clk 0:00:04]} 108. Ne7+ {[%clk 0:00:04]}  Kc5 {[%clk 0:00:05]} 109. Ke6 {[%clk 0:00:04]}  Qe8 {[%clk 0:00:04]} 110. Kf6 {[%clk 0:00:03]}  Kd6 {[%clk 0:00:05]} 111. Nf5+ {[%clk 0:00:03]}  Kd5 {[%clk 0:00:05]} 112. Ng7 {[%clk 0:00:03]}  Qf8+ {[%clk 0:00:04]} 113. Kg6 {[%clk 0:00:03]}  Ke5 {[%clk 0:00:05]} 114. Kh6 {[%clk 0:00:03]}  Qh8+ {[%clk 0:00:05]} 115. Kg6 {[%clk 0:00:03]}  Qf8 {[%clk 0:00:06]} 116. Nh5 {[%clk 0:00:03]}  Qg8+ {[%clk 0:00:05]} 117. Ng7 {[%clk 0:00:02]}  Qd8 {[%clk 0:00:04]} 118. Kh7 {[%clk 0:00:02]}  Qd3+ {[%clk 0:00:05]} 119. Kg8 {[%clk 0:00:02]}  Kf6 {[%clk 0:00:05]} 120. Nh5+ {[%clk 0:00:02]}  Kg5 {[%clk 0:00:04]} 121. Ng7 {[%clk 0:00:02]}  Kg6 {[%clk 0:00:05]} 122. Ne6 {[%clk 0:00:01]}  Qd5 {[%clk 0:00:05]} 123. Kf8 {[%clk 0:00:01]}  Qd6+ {[%clk 0:00:06]} 0-1


[Site "https://www.chess.com"]